[Event "Titled Tuesday Blitz July 11 Late 2023"]
[White "Sidletskyi, Ivan"]
[Black "Krzyzanowski, Marcin"]
[WhiteFideId "14156024"]
[BlackFideId "1132199"]
[WhiteElo "2536"]
[BlackElo "2794"]
[Result "1-0"]
[Round "4"]
[TimeControl "180+2"]
[Date "2023.07.11"]
[WhiteClock "0:00:27"]
[BlackClock "0:00:00"]
[Board "41"]

1. e4 {[%clk 0:03:00]}  d5 {[%clk 0:02:55]} 2. exd5 {[%clk 0:03:00]}  Qxd5 {[%clk 0:02:56]} 3. Nc3 {[%clk 0:03:01]}  Qd8 {[%clk 0:02:56]} 4. d4 {[%clk 0:03:01]}  Nf6 {[%clk 0:02:57]} 5. Nf3 {[%clk 0:03:00]}  g6 {[%clk 0:02:57]} 6. Bc4 {[%clk 0:02:56]}  Bg7 {[%clk 0:02:57]} 7. O-O {[%clk 0:02:53]}  O-O {[%clk 0:02:57]} 8. h3 {[%clk 0:02:52]}  c6 {[%clk 0:02:57]} 9. Bf4 {[%clk 0:02:50]}  Nd5 {[%clk 0:02:56]} 10. Nxd5 {[%clk 0:02:42]}  cxd5 {[%clk 0:02:56]} 11. Bd3 {[%clk 0:02:43]}  Nc6 {[%clk 0:02:54]} 12. c3 {[%clk 0:02:43]}  f6 {[%clk 0:02:25]} 13. Qb3 {[%clk 0:02:25]}  Kh8 {[%clk 0:02:22]} 14. Rfe1 {[%clk 0:02:07]}  e5 {[%clk 0:01:38]} 15. dxe5 {[%clk 0:02:07]}  fxe5 {[%clk 0:01:37]} 16. Bg5 {[%clk 0:01:27]}  Qd6 {[%clk 0:01:26]} 17. Rad1 {[%clk 0:01:15]}  Be6 {[%clk 0:01:05]} 18. Qxb7 {[%clk 0:00:57]}  Rab8 {[%clk 0:00:58]} 19. Qa6 {[%clk 0:00:57]}  Rb6 {[%clk 0:00:34]} 20. Qa4 {[%clk 0:00:47]}  Qc7 {[%clk 0:00:16]} 21. Qh4 {[%clk 0:00:45]}  Rxb2 {[%clk 0:00:12]} 22. Bxg6 {[%clk 0:00:41]}  Bg8 {[%clk 0:00:12]} 23. Rxd5 {[%clk 0:00:34]}  Rxf3 {[%clk 0:00:06]} 24. gxf3 {[%clk 0:00:31]}  Na5 {[%clk 0:00:00]} 25. Rd8 {[%clk 0:00:27]} 1-0


[Site "https://www.chess.com"]

[Event "Titled Tuesday Blitz July 11 Late 2023"]
[White "Schmakel, Sam"]
[Black "Kanyamarala, Tarun"]
[WhiteFideId "2039311"]
[BlackFideId "45004714"]
[WhiteElo "2788"]
[BlackElo "2532"]
[Result "1-0"]
[Round "4"]
[TimeControl "180+2"]
[Date "2023.07.11"]
[WhiteClock "0:00:11"]
[BlackClock "0:00:53"]
[Board "44"]

1. Nf3 {[%clk 0:03:00]}  d5 {[%clk 0:02:52]} 2. g3 {[%clk 0:02:59]}  Nd7 {[%clk 0:02:51]} 3. Bg2 {[%clk 0:02:46]}  e5 {[%clk 0:02:49]} 4. d3 {[%clk 0:02:46]}  Ngf6 {[%clk 0:02:49]} 5. O-O {[%clk 0:02:47]}  Bd6 {[%clk 0:02:47]} 6. Nc3 {[%clk 0:02:43]}  c6 {[%clk 0:02:46]} 7. e4 {[%clk 0:02:43]}  O-O {[%clk 0:02:44]} 8. Nh4 {[%clk 0:02:31]}  Bb4 {[%clk 0:02:39]} 9. exd5 {[%clk 0:02:26]}  Bxc3 {[%clk 0:02:39]} 10. dxc6 {[%clk 0:02:25]}  Bxb2 {[%clk 0:02:29]} 11. Bxb2 {[%clk 0:02:26]}  bxc6 {[%clk 0:02:27]} 12. Bxc6 {[%clk 0:02:22]}  Rb8 {[%clk 0:02:27]} 13. Rb1 {[%clk 0:02:21]}  Bb7 {[%clk 0:02:26]} 14. Bxb7 {[%clk 0:02:13]}  Rxb7 {[%clk 0:02:26]} 15. Ba3 {[%clk 0:02:00]}  Rxb1 {[%clk 0:02:22]} 16. Qxb1 {[%clk 0:02:01]}  Re8 {[%clk 0:02:22]} 17. Nf5 {[%clk 0:01:47]}  h6 {[%clk 0:02:20]} 18. Qb5 {[%clk 0:01:28]}  e4 {[%clk 0:02:13]} 19. Nd6 {[%clk 0:01:28]}  Re5 {[%clk 0:02:12]} 20. Qc4 {[%clk 0:01:28]}  Re6 {[%clk 0:01:46]} 21. Nxe4 {[%clk 0:01:07]}  Ne5 {[%clk 0:01:40]} 22. Nxf6+ {[%clk 0:01:07]}  Rxf6 {[%clk 0:01:37]} 23. Qe4 {[%clk 0:00:33]}  Nf3+ {[%clk 0:01:37]} 24. Kg2 {[%clk 0:00:34]}  Qb6 {[%clk 0:01:37]} 25. Be7 {[%clk 0:00:22]}  Nd2 {[%clk 0:01:36]} 26. Qa8+ {[%clk 0:00:20]}  Kh7 {[%clk 0:01:33]} 27. Bxf6 {[%clk 0:00:21]}  Nxf1 {[%clk 0:01:32]} 28. Qe4+ {[%clk 0:00:17]}  Kg8 {[%clk 0:01:08]} 29. Bd4 {[%clk 0:00:15]}  Qb1 {[%clk 0:01:02]} 30. Qe8+ {[%clk 0:00:15]}  Kh7 {[%clk 0:01:02]} 31. Qxf7 {[%clk 0:00:16]}  Ne3+ {[%clk 0:01:00]} 32. Bxe3 {[%clk 0:00:12]}  Qxc2 {[%clk 0:00:55]} 33. Qd5 {[%clk 0:00:12]}  Qc7 {[%clk 0:00:53]} 34. h4 {[%clk 0:00:11]} 1-0


[Site "https://www.chess.com"]

[Event "Titled Tuesday Blitz July 11 Late 2023"]
[White "Francisco Guecamburu, Candela Be"]
[Black "Bartel, Mateusz"]
[WhiteFideId "160911"]
[BlackFideId "1112635"]
[WhiteElo "2532"]
[BlackElo "2785"]
[Result "0-1"]
[Round "4"]
[TimeControl "180+2"]
[Date "2023.07.11"]
[WhiteClock "0:00:03"]
[BlackClock "0:00:04"]
[Board "45"]

1. e4 {[%clk 0:03:00]}  c6 {[%clk 0:02:57]} 2. d4 {[%clk 0:03:00]}  d5 {[%clk 0:02:57]} 3. e5 {[%clk 0:03:01]}  Bf5 {[%clk 0:02:53]} 4. h4 {[%clk 0:03:01]}  h5 {[%clk 0:02:48]} 5. Bg5 {[%clk 0:03:01]}  Qc7 {[%clk 0:02:41]} 6. Bd3 {[%clk 0:02:59]}  Bxd3 {[%clk 0:02:38]} 7. Qxd3 {[%clk 0:03:00]}  e6 {[%clk 0:02:32]} 8. Nd2 {[%clk 0:02:53]}  Ne7 {[%clk 0:02:31]} 9. Ngf3 {[%clk 0:02:53]}  Nf5 {[%clk 0:02:31]} 10. O-O {[%clk 0:02:48]}  Be7 {[%clk 0:02:13]} 11. c4 {[%clk 0:02:43]}  O-O {[%clk 0:02:10]} 12. Rac1 {[%clk 0:02:39]}  Qd7 {[%clk 0:02:07]} 13. Rfd1 {[%clk 0:02:30]}  Rd8 {[%clk 0:02:04]} 14. Nf1 {[%clk 0:01:46]}  Bxg5 {[%clk 0:02:02]} 15. Nxg5 {[%clk 0:01:46]}  Qe7 {[%clk 0:01:55]} 16. Qf3 {[%clk 0:01:29]}  g6 {[%clk 0:01:53]} 17. g3 {[%clk 0:01:28]}  Nd7 {[%clk 0:01:23]} 18. Ne3 {[%clk 0:01:09]}  dxc4 {[%clk 0:01:16]} 19. Nxc4 {[%clk 0:00:37]}  Nb6 {[%clk 0:01:14]} 20. Ne4 {[%clk 0:00:19]}  Nd5 {[%clk 0:01:11]} 21. Ncd6 {[%clk 0:00:18]}  Nxd6 {[%clk 0:01:10]} 22. Nxd6 {[%clk 0:00:15]}  Rxd6 {[%clk 0:01:11]} 23. exd6 {[%clk 0:00:15]}  Qxd6 {[%clk 0:01:12]} 24. a3 {[%clk 0:00:13]}  a5 {[%clk 0:01:11]} 25. Re1 {[%clk 0:00:12]}  a4 {[%clk 0:01:11]} 26. Re5 {[%clk 0:00:12]}  Ne7 {[%clk 0:01:09]} 27. Qe4 {[%clk 0:00:12]}  Nf5 {[%clk 0:01:08]} 28. Rc4 {[%clk 0:00:10]}  Rd8 {[%clk 0:01:00]} 29. Rxa4 {[%clk 0:00:09]}  Nxd4 {[%clk 0:01:00]} 30. Rea5 {[%clk 0:00:07]}  b5 {[%clk 0:00:44]} 31. Rxd4 {[%clk 0:00:07]}  Qxd4 {[%clk 0:00:44]} 32. Qxc6 {[%clk 0:00:08]}  Qxb2 {[%clk 0:00:37]} 33. Qxb5 {[%clk 0:00:04]}  Qa1+ {[%clk 0:00:31]} 34. Kg2 {[%clk 0:00:04]}  Rd1 {[%clk 0:00:31]} 35. Ra8+ {[%clk 0:00:04]}  Kg7 {[%clk 0:00:30]} 36. Qc6 {[%clk 0:00:04]}  Qd4 {[%clk 0:00:09]} 37. Rc8 {[%clk 0:00:03]}  Qd3 {[%clk 0:00:07]} 38. Qc3+ {[%clk 0:00:02]}  Qxc3 {[%clk 0:00:07]} 39. Rxc3 {[%clk 0:00:03]}  Ra1 {[%clk 0:00:08]} 40. Kf3 {[%clk 0:00:04]}  f5 {[%clk 0:00:07]} 41. Kf4 {[%clk 0:00:04]}  Kf6 {[%clk 0:00:07]} 42. Kf3 {[%clk 0:00:04]}  Ra2 {[%clk 0:00:07]} 43. Kg2 {[%clk 0:00:04]}  g5 {[%clk 0:00:06]} 44. hxg5+ {[%clk 0:00:04]}  Kxg5 {[%clk 0:00:06]} 45. Rb3 {[%clk 0:00:05]}  e5 {[%clk 0:00:07]} 46. Kf3 {[%clk 0:00:05]}  e4+ {[%clk 0:00:06]} 47. Ke3 {[%clk 0:00:05]}  h4 {[%clk 0:00:06]} 48. gxh4+ {[%clk 0:00:06]}  Kxh4 {[%clk 0:00:06]} 49. f3 {[%clk 0:00:04]}  Kg3 {[%clk 0:00:03]} 50. fxe4 {[%clk 0:00:04]}  f4+ {[%clk 0:00:04]} 51. Kd4+ {[%clk 0:00:04]}  f3 {[%clk 0:00:04]} 52. e5 {[%clk 0:00:03]}  Kf4 {[%clk 0:00:04]} 53. e6 {[%clk 0:00:03]}  f2 {[%clk 0:00:04]} 54. e7 {[%clk 0:00:03]}  Rd2+ {[%clk 0:00:04]} 55. Kc3 {[%clk 0:00:02]}  Re2 {[%clk 0:00:04]} 56. Rb4+ {[%clk 0:00:02]}  Kf3 {[%clk 0:00:04]} 57. Rb1 {[%clk 0:00:03]}  Rxe7 {[%clk 0:00:02]} 58. Rf1 {[%clk 0:00:03]}  Re1 {[%clk 0:00:02]} 59. Rxf2+ {[%clk 0:00:04]}  Kxf2 {[%clk 0:00:03]} 60. Kb4 {[%clk 0:00:04]}  Ke3 {[%clk 0:00:03]} 61. a4 {[%clk 0:00:05]}  Kd4 {[%clk 0:00:03]} 62. a5 {[%clk 0:00:06]}  Rb1+ {[%clk 0:00:04]} 63. Ka4 {[%clk 0:00:03]}  Kc5 {[%clk 0:00:04]} 0-1


[Site "https://www.chess.com"]

[Event "Titled Tuesday Blitz July 11 Late 2023"]
[White "Mahdavi, Reza"]
[Black "brm72"]
[WhiteFideId "12595926"]
[WhiteElo "2771"]
[BlackElo "2531"]
[Result "1/2-1/2"]
[Round "4"]
[TimeControl "180+2"]
[Date "2023.07.11"]
[WhiteClock "0:00:06"]
[BlackClock "0:00:10"]
[Board "46"]

1. e4 {[%clk 0:03:00]}  c6 {[%clk 0:02:59]} 2. d4 {[%clk 0:02:59]}  d5 {[%clk 0:02:59]} 3. e5 {[%clk 0:02:59]}  c5 {[%clk 0:03:00]} 4. dxc5 {[%clk 0:02:54]}  e6 {[%clk 0:03:00]} 5. a3 {[%clk 0:02:54]}  Bxc5 {[%clk 0:02:59]} 6. b4 {[%clk 0:02:54]}  Bb6 {[%clk 0:02:59]} 7. Bb2 {[%clk 0:02:54]}  a5 {[%clk 0:02:59]} 8. b5 {[%clk 0:02:53]}  Ne7 {[%clk 0:02:58]} 9. Nf3 {[%clk 0:02:53]}  Nd7 {[%clk 0:02:58]} 10. Bd3 {[%clk 0:02:54]}  a4 {[%clk 0:02:57]} 11. Nbd2 {[%clk 0:02:52]}  Nc5 {[%clk 0:02:57]} 12. Qe2 {[%clk 0:02:53]}  Bd7 {[%clk 0:02:56]} 13. c4 {[%clk 0:02:51]}  Nxd3+ {[%clk 0:02:49]} 14. Qxd3 {[%clk 0:02:52]}  dxc4 {[%clk 0:02:49]} 15. Nxc4 {[%clk 0:02:53]}  Ba5+ {[%clk 0:02:27]} 16. Bc3 {[%clk 0:02:26]}  Bxc3+ {[%clk 0:02:16]} 17. Qxc3 {[%clk 0:02:27]}  O-O {[%clk 0:02:12]} 18. Nd6 {[%clk 0:02:25]}  Nd5 {[%clk 0:01:50]} 19. Qd2 {[%clk 0:02:22]}  Qb6 {[%clk 0:01:47]} 20. O-O {[%clk 0:02:06]}  Rfd8 {[%clk 0:01:46]} 21. Rab1 {[%clk 0:01:51]}  Be8 {[%clk 0:01:43]} 22. Rfc1 {[%clk 0:01:42]}  h6 {[%clk 0:01:34]} 23. Qd4 {[%clk 0:01:31]}  Rxd6 {[%clk 0:01:23]} 24. exd6 {[%clk 0:01:29]}  Qxd6 {[%clk 0:01:24]} 25. Qc5 {[%clk 0:01:28]}  Qf4 {[%clk 0:01:11]} 26. Rc4 {[%clk 0:01:23]}  Qf5 {[%clk 0:01:09]} 27. Rbc1 {[%clk 0:01:20]}  Bd7 {[%clk 0:01:02]} 28. Qd6 {[%clk 0:01:15]}  Be8 {[%clk 0:00:40]} 29. h3 {[%clk 0:01:09]}  Kh7 {[%clk 0:00:37]} 30. Rc8 {[%clk 0:01:02]}  Rxc8 {[%clk 0:00:37]} 31. Rxc8 {[%clk 0:01:03]}  Bxb5 {[%clk 0:00:33]} 32. Kh2 {[%clk 0:00:59]}  Bf1 {[%clk 0:00:31]} 33. Qb8 {[%clk 0:00:56]}  Qf4+ {[%clk 0:00:21]} 34. Qxf4 {[%clk 0:00:55]}  Nxf4 {[%clk 0:00:22]} 35. Ne1 {[%clk 0:00:51]}  b5 {[%clk 0:00:20]} 36. Rc7 {[%clk 0:00:49]}  Kg6 {[%clk 0:00:20]} 37. Rb7 {[%clk 0:00:49]}  Bc4 {[%clk 0:00:20]} 38. g3 {[%clk 0:00:45]}  Nd5 {[%clk 0:00:20]} 39. Nc2 {[%clk 0:00:44]}  Nc3 {[%clk 0:00:20]} 40. f4 {[%clk 0:00:45]}  Nd1 {[%clk 0:00:17]} 41. g4 {[%clk 0:00:44]}  Kf6 {[%clk 0:00:17]} 42. Kg3 {[%clk 0:00:43]}  g5 {[%clk 0:00:17]} 43. Rd7 {[%clk 0:00:40]}  Nc3 {[%clk 0:00:16]} 44. fxg5+ {[%clk 0:00:39]}  hxg5 {[%clk 0:00:16]} 45. Ne3 {[%clk 0:00:39]}  Ne4+ {[%clk 0:00:16]} 46. Kf3 {[%clk 0:00:40]}  Nc5 {[%clk 0:00:16]} 47. Rc7 {[%clk 0:00:39]}  Nd3 {[%clk 0:00:16]} 48. Ke4 {[%clk 0:00:34]}  Ne5 {[%clk 0:00:16]} 49. Rc5 {[%clk 0:00:30]}  Nd7 {[%clk 0:00:11]} 50. Rc8 {[%clk 0:00:31]}  Ne5 {[%clk 0:00:10]} 51. Rc7 {[%clk 0:00:28]}  Be2 {[%clk 0:00:09]} 52. Kd4 {[%clk 0:00:28]}  Nf3+ {[%clk 0:00:08]} 53. Kc5 {[%clk 0:00:27]}  Ng1 {[%clk 0:00:09]} 54. Rc6 {[%clk 0:00:14]}  Nxh3 {[%clk 0:00:08]} 55. Nd5+ {[%clk 0:00:14]}  Kg7 {[%clk 0:00:08]} 56. Nc3 {[%clk 0:00:13]}  Bxg4 {[%clk 0:00:08]} 57. Rc7 {[%clk 0:00:13]}  Bf5 {[%clk 0:00:06]} 58. Nxb5 {[%clk 0:00:13]}  g4 {[%clk 0:00:06]} 59. Nd6 {[%clk 0:00:14]}  Bg6 {[%clk 0:00:07]} 60. Kd4 {[%clk 0:00:12]}  g3 {[%clk 0:00:07]} 61. Ne8+ {[%clk 0:00:07]}  Kf8 {[%clk 0:00:06]} 62. Nf6 {[%clk 0:00:06]}  g2 {[%clk 0:00:06]} 63. Rc8+ {[%clk 0:00:07]}  Kg7 {[%clk 0:00:06]} 64. Ne8+ {[%clk 0:00:04]}  Kh6 {[%clk 0:00:06]} 65. Rc1 {[%clk 0:00:01]}  g1=Q+ {[%clk 0:00:07]} 66. Rxg1 {[%clk 0:00:02]}  Nxg1 {[%clk 0:00:07]} 67. Ke5 {[%clk 0:00:03]}  Bc2 {[%clk 0:00:08]} 68. Kf6 {[%clk 0:00:02]}  Nf3 {[%clk 0:00:07]} 69. Nd6 {[%clk 0:00:03]}  e5 {[%clk 0:00:06]} 70. Nxf7+ {[%clk 0:00:03]}  Kh5 {[%clk 0:00:06]} 71. Nxe5 {[%clk 0:00:03]}  Nd4 {[%clk 0:00:05]} 72. Nc4 {[%clk 0:00:01]}  Kg4 {[%clk 0:00:05]} 73. Ke5 {[%clk 0:00:02]}  Nb5 {[%clk 0:00:04]} 74. Ne3+ {[%clk 0:00:02]}  Kf3 {[%clk 0:00:04]} 75. Nxc2 {[%clk 0:00:03]}  Nxa3 {[%clk 0:00:04]} 76. Nxa3 {[%clk 0:00:03]}  Ke3 {[%clk 0:00:05]} 77. Kd5 {[%clk 0:00:03]}  Kd2 {[%clk 0:00:06]} 78. Kc5 {[%clk 0:00:04]}  Kc3 {[%clk 0:00:07]} 79. Kb5 {[%clk 0:00:05]}  Kb2 {[%clk 0:00:08]} 80. Nc4+ {[%clk 0:00:05]}  Kb3 {[%clk 0:00:09]} 81. Na5+ {[%clk 0:00:06]}  Ka3 {[%clk 0:00:09]} 82. Nc6 {[%clk 0:00:05]}  Kb3 {[%clk 0:00:10]} 83. Nd4+ {[%clk 0:00:06]}  Kc3 {[%clk 0:00:10]} 84. Kxa4 {[%clk 0:00:06]} 1/2-1/2


[Site "https://www.chess.com"]

[Event "Titled Tuesday Blitz July 11 Late 2023"]
[White "Mattheii"]
[Black "Nazari, Arad"]
[BlackFideId "12577324"]
[WhiteElo "2524"]
[BlackElo "2719"]
[Result "1/2-1/2"]
[Round "4"]
[TimeControl "180+2"]
[Date "2023.07.11"]
[WhiteClock "0:00:10"]
[BlackClock "0:00:10"]
[Board "51"]

1. d4 {[%clk 0:03:00]}  Nf6 {[%clk 0:02:59]} 2. c4 {[%clk 0:03:01]}  g6 {[%clk 0:02:59]} 3. Nc3 {[%clk 0:03:01]}  d5 {[%clk 0:02:59]} 4. Bg5 {[%clk 0:03:00]}  Ne4 {[%clk 0:02:58]} 5. Bh4 {[%clk 0:03:00]}  g5 {[%clk 0:02:56]} 6. Bg3 {[%clk 0:02:59]}  h5 {[%clk 0:02:46]} 7. f3 {[%clk 0:02:33]}  h4 {[%clk 0:02:27]} 8. Bf2 {[%clk 0:01:59]}  Nxf2 {[%clk 0:02:23]} 9. Kxf2 {[%clk 0:02:00]}  dxc4 {[%clk 0:02:13]} 10. e3 {[%clk 0:01:57]}  c5 {[%clk 0:02:07]} 11. Bxc4 {[%clk 0:01:55]}  cxd4 {[%clk 0:02:05]} 12. Qxd4 {[%clk 0:01:51]}  Qxd4 {[%clk 0:02:05]} 13. exd4 {[%clk 0:01:52]}  Bg7 {[%clk 0:02:03]} 14. Nge2 {[%clk 0:01:52]}  Nc6 {[%clk 0:02:01]} 15. Rhd1 {[%clk 0:01:40]}  Bd7 {[%clk 0:01:54]} 16. Rac1 {[%clk 0:01:36]}  Rc8 {[%clk 0:01:53]} 17. Ne4 {[%clk 0:01:28]}  g4 {[%clk 0:01:42]} 18. Nc5 {[%clk 0:01:18]}  gxf3 {[%clk 0:01:26]} 19. gxf3 {[%clk 0:01:16]}  Rc7 {[%clk 0:00:28]} 20. Nxd7 {[%clk 0:01:08]}  Rxd7 {[%clk 0:00:20]} 21. d5 {[%clk 0:01:06]}  Ne5 {[%clk 0:00:14]} 22. Bb5 {[%clk 0:01:05]}  O-O {[%clk 0:00:14]} 23. Bxd7 {[%clk 0:00:57]}  Nxd7 {[%clk 0:00:15]} 24. Rc7 {[%clk 0:00:56]}  Rd8 {[%clk 0:00:15]} 25. d6 {[%clk 0:00:43]}  e6 {[%clk 0:00:06]} 26. Rxb7 {[%clk 0:00:42]}  Nc5 {[%clk 0:00:04]} 27. Rc7 {[%clk 0:00:30]}  Na4 {[%clk 0:00:02]} 28. d7 {[%clk 0:00:24]}  Bf6 {[%clk 0:00:01]} 29. Rc8 {[%clk 0:00:24]}  Kf8 {[%clk 0:00:02]} 30. Rxd8+ {[%clk 0:00:24]}  Bxd8 {[%clk 0:00:02]} 31. b3 {[%clk 0:00:24]}  Nb6 {[%clk 0:00:03]} 32. Nc3 {[%clk 0:00:18]}  Ke7 {[%clk 0:00:03]} 33. Nb5 {[%clk 0:00:18]}  Nxd7 {[%clk 0:00:03]} 34. Kg2 {[%clk 0:00:16]}  Bb6 {[%clk 0:00:03]} 35. Nd6 {[%clk 0:00:15]}  Bc5 {[%clk 0:00:02]} 36. Ne4 {[%clk 0:00:15]}  Bb6 {[%clk 0:00:02]} 37. a4 {[%clk 0:00:15]}  Ne5 {[%clk 0:00:02]} 38. b4 {[%clk 0:00:14]}  Ng6 {[%clk 0:00:03]} 39. a5 {[%clk 0:00:14]}  Nf4+ {[%clk 0:00:03]} 40. Kf1 {[%clk 0:00:15]}  Be3 {[%clk 0:00:04]} 41. b5 {[%clk 0:00:14]}  f5 {[%clk 0:00:05]} 42. Nf2 {[%clk 0:00:11]}  Nd5 {[%clk 0:00:04]} 43. Nd3 {[%clk 0:00:10]}  Bd4 {[%clk 0:00:04]} 44. Nf2 {[%clk 0:00:09]}  Ne3+ {[%clk 0:00:04]} 45. Ke2 {[%clk 0:00:09]}  Nxd1 {[%clk 0:00:05]} 46. Nxd1 {[%clk 0:00:10]}  Kd6 {[%clk 0:00:05]} 47. Kd3 {[%clk 0:00:10]}  e5 {[%clk 0:00:06]} 48. Kc4 {[%clk 0:00:10]}  Bg1 {[%clk 0:00:05]} 49. h3 {[%clk 0:00:10]}  e4 {[%clk 0:00:05]} 50. fxe4 {[%clk 0:00:10]}  fxe4 {[%clk 0:00:06]} 51. Nc3 {[%clk 0:00:11]}  Ke5 {[%clk 0:00:06]} 52. b6 {[%clk 0:00:09]}  axb6 {[%clk 0:00:06]} 53. a6 {[%clk 0:00:10]}  b5+ {[%clk 0:00:07]} 54. Nxb5 {[%clk 0:00:10]}  Kf4 {[%clk 0:00:07]} 55. a7 {[%clk 0:00:09]}  Bxa7 {[%clk 0:00:07]} 56. Nxa7 {[%clk 0:00:10]}  e3 {[%clk 0:00:07]} 57. Kd3 {[%clk 0:00:10]}  Kf3 {[%clk 0:00:07]} 58. Nb5 {[%clk 0:00:10]}  Kg3 {[%clk 0:00:06]} 59. Nd4 {[%clk 0:00:11]}  Kxh3 {[%clk 0:00:07]} 60. Kxe3 {[%clk 0:00:12]}  Kg2 {[%clk 0:00:08]} 61. Nf3 {[%clk 0:00:12]}  h3 {[%clk 0:00:08]} 62. Kf4 {[%clk 0:00:12]}  Kf2 {[%clk 0:00:09]} 63. Kg4 {[%clk 0:00:12]}  Kg2 {[%clk 0:00:09]} 64. Kh4 {[%clk 0:00:10]}  Kxf3 {[%clk 0:00:10]} 65. Kxh3 {[%clk 0:00:10]} 1/2-1/2


[Site "https://www.chess.com"]

[Event "Titled Tuesday Blitz July 11 Late 2023"]
[White "caropawn10"]
[Black "Jovic, Stanoje"]
[BlackFideId "905020"]
[WhiteElo "2712"]
[BlackElo "2519"]
[Result "0-1"]
[Round "4"]
[TimeControl "180+2"]
[Date "2023.07.11"]
[WhiteClock "0:00:19"]
[BlackClock "0:00:21"]
[Board "54"]

1. c4 {[%clk 0:03:00]}  e5 {[%clk 0:02:59]} 2. g3 {[%clk 0:03:00]}  c6 {[%clk 0:02:59]} 3. Nf3 {[%clk 0:03:00]}  e4 {[%clk 0:02:58]} 4. Nd4 {[%clk 0:03:00]}  d5 {[%clk 0:02:58]} 5. d3 {[%clk 0:03:01]}  c5 {[%clk 0:02:52]} 6. Nc2 {[%clk 0:02:53]}  dxc4 {[%clk 0:02:50]} 7. dxc4 {[%clk 0:02:54]}  Qxd1+ {[%clk 0:02:49]} 8. Kxd1 {[%clk 0:02:55]}  Nc6 {[%clk 0:02:48]} 9. Nc3 {[%clk 0:02:53]}  f5 {[%clk 0:02:45]} 10. Bf4 {[%clk 0:02:46]}  Be6 {[%clk 0:02:41]} 11. b3 {[%clk 0:02:36]}  O-O-O+ {[%clk 0:02:40]} 12. Kc1 {[%clk 0:02:36]}  g6 {[%clk 0:02:33]} 13. Be3 {[%clk 0:01:53]}  Bg7 {[%clk 0:02:29]} 14. Kb2 {[%clk 0:01:54]}  b6 {[%clk 0:02:17]} 15. Bg2 {[%clk 0:01:54]}  Nf6 {[%clk 0:02:17]} 16. h3 {[%clk 0:01:51]}  Nd4 {[%clk 0:02:13]} 17. Rad1 {[%clk 0:01:31]}  Nh5 {[%clk 0:02:06]} 18. Rd2 {[%clk 0:01:31]}  Rhf8 {[%clk 0:01:58]} 19. Na3 {[%clk 0:00:59]}  f4 {[%clk 0:01:55]} 20. gxf4 {[%clk 0:00:59]}  Nf5 {[%clk 0:01:33]} 21. Rhd1 {[%clk 0:00:49]}  Rxd2+ {[%clk 0:01:28]} 22. Rxd2 {[%clk 0:00:49]}  Nh4 {[%clk 0:01:25]} 23. Bxe4 {[%clk 0:00:49]}  Bxh3 {[%clk 0:01:24]} 24. Nb5 {[%clk 0:00:48]}  Kb8 {[%clk 0:01:14]} 25. Kc2 {[%clk 0:00:34]}  Nxf4 {[%clk 0:01:04]} 26. Bxf4+ {[%clk 0:00:31]}  Rxf4 {[%clk 0:01:03]} 27. Rd8+ {[%clk 0:00:31]}  Bc8 {[%clk 0:01:03]} 28. Rg8 {[%clk 0:00:11]}  Bxc3 {[%clk 0:00:55]} 29. Nxc3 {[%clk 0:00:12]}  Rxf2 {[%clk 0:00:52]} 30. Bd5 {[%clk 0:00:13]}  Kc7 {[%clk 0:00:49]} 31. Rg7+ {[%clk 0:00:13]}  Kd8 {[%clk 0:00:48]} 32. Rxh7 {[%clk 0:00:11]}  Bf5+ {[%clk 0:00:45]} 33. Kd2 {[%clk 0:00:09]}  g5 {[%clk 0:00:44]} 34. Rg7 {[%clk 0:00:10]}  g4 {[%clk 0:00:41]} 35. Ke3 {[%clk 0:00:11]}  Rf1 {[%clk 0:00:40]} 36. Ne4 {[%clk 0:00:11]}  Bxe4 {[%clk 0:00:40]} 37. Kxe4 {[%clk 0:00:11]}  Re1 {[%clk 0:00:38]} 38. e3 {[%clk 0:00:12]}  Ng2 {[%clk 0:00:37]} 39. Ke5 {[%clk 0:00:09]}  Nxe3 {[%clk 0:00:35]} 40. Be4 {[%clk 0:00:10]}  Nc2 {[%clk 0:00:33]} 41. Kd6 {[%clk 0:00:10]}  Rxe4 {[%clk 0:00:31]} 42. Rxa7 {[%clk 0:00:10]}  Rd4+ {[%clk 0:00:31]} 43. Ke6 {[%clk 0:00:10]}  g3 {[%clk 0:00:31]} 44. Rg7 {[%clk 0:00:10]}  Rd3 {[%clk 0:00:30]} 45. a4 {[%clk 0:00:09]}  Ne1 {[%clk 0:00:29]} 46. a5 {[%clk 0:00:08]}  bxa5 {[%clk 0:00:29]} 47. Rg8+ {[%clk 0:00:09]}  Kc7 {[%clk 0:00:28]} 48. Rg7+ {[%clk 0:00:10]}  Kc6 {[%clk 0:00:29]} 49. Kf5 {[%clk 0:00:10]}  Rxb3 {[%clk 0:00:28]} 50. Rg6+ {[%clk 0:00:10]}  Kc7 {[%clk 0:00:28]} 51. Rg7+ {[%clk 0:00:11]}  Kd8 {[%clk 0:00:28]} 52. Rg8+ {[%clk 0:00:11]}  Ke7 {[%clk 0:00:28]} 53. Rg7+ {[%clk 0:00:12]}  Kf8 {[%clk 0:00:29]} 54. Ra7 {[%clk 0:00:13]}  g2 {[%clk 0:00:27]} 55. Kf6 {[%clk 0:00:14]}  Rf3+ {[%clk 0:00:27]} 56. Ke6 {[%clk 0:00:14]}  g1=Q {[%clk 0:00:26]} 57. Ra8+ {[%clk 0:00:15]}  Kg7 {[%clk 0:00:27]} 58. Ra7+ {[%clk 0:00:16]}  Kg6 {[%clk 0:00:27]} 59. Rxa5 {[%clk 0:00:17]}  Qd4 {[%clk 0:00:26]} 60. Ke7 {[%clk 0:00:17]}  Rf6 {[%clk 0:00:23]} 61. Ra6 {[%clk 0:00:18]}  Rxa6 {[%clk 0:00:22]} 62. Ke8 {[%clk 0:00:18]}  Qh8+ {[%clk 0:00:20]} 63. Ke7 {[%clk 0:00:19]}  Qg7+ {[%clk 0:00:20]} 64. Kd8 {[%clk 0:00:19]}  Ra8# {[%clk 0:00:21]} 0-1


[Site "https://www.chess.com"]

[Event "Titled Tuesday Blitz July 11 Late 2023"]
[White "Jaracz, Pawel"]
[Black "Olivares Olivares, Claudio"]
[WhiteFideId "1102222"]
[BlackFideId "3400786"]
[WhiteElo "2712"]
[BlackElo "2517"]
[Result "1-0"]
[Round "4"]
[TimeControl "180+2"]
[Date "2023.07.11"]
[WhiteClock "0:00:01"]
[BlackClock "0:00:00"]
[Board "55"]

1. e4 {[%clk 0:02:55]}  c5 {[%clk 0:02:58]} 2. Nc3 {[%clk 0:02:54]}  d6 {[%clk 0:02:59]} 3. f4 {[%clk 0:02:54]}  e6 {[%clk 0:02:56]} 4. Nf3 {[%clk 0:02:54]}  Nc6 {[%clk 0:02:56]} 5. d4 {[%clk 0:02:52]}  cxd4 {[%clk 0:02:57]} 6. Nxd4 {[%clk 0:02:52]}  Nf6 {[%clk 0:02:54]} 7. Be3 {[%clk 0:02:51]}  a6 {[%clk 0:02:54]} 8. Bd3 {[%clk 0:02:51]}  Qc7 {[%clk 0:02:54]} 9. Qf3 {[%clk 0:02:50]}  Be7 {[%clk 0:02:54]} 10. O-O {[%clk 0:02:39]}  O-O {[%clk 0:02:54]} 11. Rae1 {[%clk 0:02:38]}  Nxd4 {[%clk 0:02:53]} 12. Bxd4 {[%clk 0:02:38]}  e5 {[%clk 0:02:53]} 13. Be3 {[%clk 0:02:09]}  b5 {[%clk 0:02:49]} 14. a3 {[%clk 0:02:05]}  Rb8 {[%clk 0:02:49]} 15. fxe5 {[%clk 0:01:34]}  dxe5 {[%clk 0:02:48]} 16. Bg5 {[%clk 0:01:34]}  Be6 {[%clk 0:02:44]} 17. Kh1 {[%clk 0:01:24]}  b4 {[%clk 0:02:37]} 18. axb4 {[%clk 0:01:16]}  Rxb4 {[%clk 0:02:38]} 19. Nd5 {[%clk 0:01:09]}  Bxd5 {[%clk 0:01:42]} 20. exd5 {[%clk 0:01:09]}  e4 {[%clk 0:01:33]} 21. Bxe4 {[%clk 0:00:32]}  Nxe4 {[%clk 0:01:29]} 22. Bxe7 {[%clk 0:00:32]}  Qxe7 {[%clk 0:01:29]} 23. c3 {[%clk 0:00:32]}  Rc4 {[%clk 0:00:47]} 24. b3 {[%clk 0:00:32]}  Rxc3 {[%clk 0:00:47]} 25. Qxc3 {[%clk 0:00:30]}  f5 {[%clk 0:00:31]} 26. Qc4 {[%clk 0:00:22]}  Kh8 {[%clk 0:00:27]} 27. Qd4 {[%clk 0:00:15]}  Qd6 {[%clk 0:00:24]} 28. Re3 {[%clk 0:00:15]}  Rc8 {[%clk 0:00:19]} 29. Ref3 {[%clk 0:00:14]}  h6 {[%clk 0:00:08]} 30. Rxf5 {[%clk 0:00:13]}  Ng5 {[%clk 0:00:05]} 31. h4 {[%clk 0:00:12]}  Nh7 {[%clk 0:00:05]} 32. Rf7 {[%clk 0:00:11]}  Qg3 {[%clk 0:00:03]} 33. Qf2 {[%clk 0:00:08]}  Qg4 {[%clk 0:00:02]} 34. Qf4 {[%clk 0:00:08]}  Qg6 {[%clk 0:00:02]} 35. d6 {[%clk 0:00:07]}  Rc2 {[%clk 0:00:02]} 36. Rf2 {[%clk 0:00:03]}  Nf6 {[%clk 0:00:02]} 37. Rxc2 {[%clk 0:00:02]}  Qxf7 {[%clk 0:00:00]} 38. Re2 {[%clk 0:00:01]} 1-0


[Site "https://www.chess.com"]